[Event "Titled Tuesday Blitz March 28 Early 2023"]
[White "Gabrielian, Artur"]
[Black "Priyanka Nutakki"]
[WhiteFideId "4131002"]
[BlackFideId "25049615"]
[WhiteElo "2432"]
[BlackElo "2256"]
[Result "1-0"]
[Round "09"]
[TimeControl "180+2"]
[Date "2023.03.28"]
[WhiteClock "0:02:04"]
[BlackClock "0:00:10"]

1. e4 {[%clk 0:03:00]}  e6 {[%clk 0:02:59]} 2. d3 {[%clk 0:03:00]}  d5 {[%clk 0:03:00]} 3. Qe2 {[%clk 0:03:00]}  Nf6 {[%clk 0:02:52]} 4. Nf3 {[%clk 0:03:00]}  Be7 {[%clk 0:02:50]} 5. g3 {[%clk 0:03:00]}  O-O {[%clk 0:02:48]} 6. Bg2 {[%clk 0:03:01]}  c5 {[%clk 0:02:48]} 7. O-O {[%clk 0:03:00]}  Nc6 {[%clk 0:02:48]} 8. e5 {[%clk 0:03:01]}  Nd7 {[%clk 0:02:48]} 9. c4 {[%clk 0:03:01]}  Nb6 {[%clk 0:02:43]} 10. Nc3 {[%clk 0:03:00]}  f6 {[%clk 0:02:41]} 11. Bf4 {[%clk 0:02:45]}  g5 {[%clk 0:02:40]} 12. exf6 {[%clk 0:02:42]}  Bxf6 {[%clk 0:02:40]} 13. Bd2 {[%clk 0:02:31]}  g4 {[%clk 0:02:06]} 14. Nh4 {[%clk 0:02:28]}  h5 {[%clk 0:01:32]} 15. Ng6 {[%clk 0:02:24]}  Nd4 {[%clk 0:01:03]} 16. Qd1 {[%clk 0:02:23]}  Rf7 {[%clk 0:00:59]} 17. Nf4 {[%clk 0:02:22]}  dxc4 {[%clk 0:00:54]} 18. Nxh5 {[%clk 0:02:21]}  cxd3 {[%clk 0:00:53]} 19. Qxg4+ {[%clk 0:02:20]}  Kf8 {[%clk 0:00:47]} 20. Bh6+ {[%clk 0:02:18]}  Ke8 {[%clk 0:00:27]} 21. Qg8+ {[%clk 0:02:17]}  Ke7 {[%clk 0:00:22]} 22. Qxd8+ {[%clk 0:02:14]}  Kxd8 {[%clk 0:00:22]} 23. Nxf6 {[%clk 0:02:15]}  Rxf6 {[%clk 0:00:22]} 24. Bg5 {[%clk 0:02:15]}  Ke7 {[%clk 0:00:22]} 25. Ne4 {[%clk 0:02:14]}  Nd7 {[%clk 0:00:22]} 26. Rad1 {[%clk 0:02:04]}  c4 {[%clk 0:00:22]} 27. b3 {[%clk 0:02:04]}  Ne2+ {[%clk 0:00:10]} 28. Kh1 {[%clk 0:02:04]} 1-0


[Site "https://www.chess.com"]

[Event "Titled Tuesday Blitz March 28 Early 2023"]
[White "Souleidis, Georgios"]
[Black "Kosakowski, Jakub"]
[WhiteFideId "4206827"]
[BlackFideId "1185080"]
[WhiteElo "2401"]
[BlackElo "2488"]
[Result "0-1"]
[Round "09"]
[TimeControl "180+2"]
[Date "2023.03.28"]
[WhiteClock "0:00:12"]
[BlackClock "0:01:04"]

1. e4 {[%clk 0:02:50]}  c6 {[%clk 0:02:59]} 2. Nc3 {[%clk 0:02:50]}  d5 {[%clk 0:02:59]} 3. Nf3 {[%clk 0:02:51]}  dxe4 {[%clk 0:03:00]} 4. Nxe4 {[%clk 0:02:52]}  Nf6 {[%clk 0:03:00]} 5. Qe2 {[%clk 0:02:52]}  Nxe4 {[%clk 0:03:01]} 6. Qxe4 {[%clk 0:02:53]}  Be6 {[%clk 0:03:02]} 7. c4 {[%clk 0:02:41]}  Nd7 {[%clk 0:03:01]} 8. d4 {[%clk 0:02:40]}  Nf6 {[%clk 0:02:58]} 9. Qh4 {[%clk 0:02:36]}  Bf5 {[%clk 0:02:56]} 10. Be2 {[%clk 0:02:32]}  e6 {[%clk 0:02:56]} 11. O-O {[%clk 0:02:31]}  Be7 {[%clk 0:02:57]} 12. Bg5 {[%clk 0:02:27]}  O-O {[%clk 0:02:53]} 13. Rfd1 {[%clk 0:02:25]}  h6 {[%clk 0:02:52]} 14. Bc1 {[%clk 0:01:54]}  b6 {[%clk 0:02:00]} 15. Qf4 {[%clk 0:01:43]}  Bd6 {[%clk 0:01:58]} 16. Qe3 {[%clk 0:01:37]}  Qc7 {[%clk 0:01:58]} 17. h3 {[%clk 0:01:36]}  Rfd8 {[%clk 0:01:56]} 18. b3 {[%clk 0:01:33]}  Ne4 {[%clk 0:01:54]} 19. Re1 {[%clk 0:00:51]}  c5 {[%clk 0:01:45]} 20. Bd3 {[%clk 0:00:49]}  cxd4 {[%clk 0:01:43]} 21. Nxd4 {[%clk 0:00:49]}  Bc5 {[%clk 0:01:42]} 22. Bb2 {[%clk 0:00:47]}  Nd6 {[%clk 0:01:31]} 23. Qg3 {[%clk 0:00:32]}  Bxd3 {[%clk 0:01:10]} 24. Nxe6 {[%clk 0:00:32]}  fxe6 {[%clk 0:01:10]} 25. Qxd3 {[%clk 0:00:17]}  Nf5 {[%clk 0:01:08]} 26. Qe4 {[%clk 0:00:15]}  Re8 {[%clk 0:01:06]} 27. Be5 {[%clk 0:00:12]}  Qf7 {[%clk 0:01:05]} 28. g4 {[%clk 0:00:12]}  Nh4 {[%clk 0:01:04]} 0-1


[Site "https://www.chess.com"]

[Event "Titled Tuesday Blitz March 28 Early 2023"]
[White "Boyer, Mahel"]
[Black "Hnydiuk, Aleksander"]
[WhiteFideId "45102422"]
[BlackFideId "1109057"]
[WhiteElo "2439"]
[BlackElo "2374"]
[Result "0-1"]
[Round "09"]
[TimeControl "180+2"]
[Date "2023.03.28"]
[WhiteClock "0:00:02"]
[BlackClock "0:00:42"]

1. e4 {[%clk 0:02:38]}  c5 {[%clk 0:03:00]} 2. Nf3 {[%clk 0:02:37]}  e6 {[%clk 0:03:00]} 3. d4 {[%clk 0:02:37]}  cxd4 {[%clk 0:03:01]} 4. Nxd4 {[%clk 0:02:37]}  Nc6 {[%clk 0:03:01]} 5. Nc3 {[%clk 0:02:36]}  a6 {[%clk 0:03:01]} 6. Nxc6 {[%clk 0:02:32]}  bxc6 {[%clk 0:03:01]} 7. g3 {[%clk 0:02:32]}  d5 {[%clk 0:03:00]} 8. Bg2 {[%clk 0:02:33]}  Nf6 {[%clk 0:03:00]} 9. O-O {[%clk 0:02:33]}  Be7 {[%clk 0:02:59]} 10. Na4 {[%clk 0:02:33]}  O-O {[%clk 0:02:50]} 11. exd5 {[%clk 0:02:28]}  cxd5 {[%clk 0:02:44]} 12. c4 {[%clk 0:02:29]}  Rb8 {[%clk 0:02:28]} 13. Bf4 {[%clk 0:02:23]}  Rb4 {[%clk 0:02:25]} 14. cxd5 {[%clk 0:02:06]}  Nxd5 {[%clk 0:02:26]} 15. Bd2 {[%clk 0:02:06]}  Rd4 {[%clk 0:02:25]} 16. Qe2 {[%clk 0:02:05]}  Rxa4 {[%clk 0:02:22]} 17. Rfd1 {[%clk 0:02:02]}  Rd4 {[%clk 0:02:14]} 18. Rac1 {[%clk 0:01:28]}  Bb7 {[%clk 0:02:11]} 19. Bf1 {[%clk 0:01:25]}  Qd7 {[%clk 0:02:01]} 20. h4 {[%clk 0:01:08]}  Rc8 {[%clk 0:01:59]} 21. Rxc8+ {[%clk 0:01:07]}  Qxc8 {[%clk 0:02:00]} 22. Rc1 {[%clk 0:01:07]}  Qd7 {[%clk 0:02:00]} 23. Bg2 {[%clk 0:01:01]}  h6 {[%clk 0:01:56]} 24. Ba5 {[%clk 0:00:57]}  Qb5 {[%clk 0:01:40]} 25. Qe1 {[%clk 0:00:35]}  Nb4 {[%clk 0:01:18]} 26. Qc3 {[%clk 0:00:27]}  Nxa2 {[%clk 0:01:03]} 27. Qxd4 {[%clk 0:00:22]}  Nxc1 {[%clk 0:01:02]} 28. Qd2 {[%clk 0:00:14]}  Nb3 {[%clk 0:00:58]} 29. Qf4 {[%clk 0:00:02]}  Bxg2 {[%clk 0:00:52]} 30. Bc3 {[%clk 0:00:02]}  Bc6 {[%clk 0:00:42]} 0-1


[Site "https://www.chess.com"]

[Event "Titled Tuesday Blitz March 28 Early 2023"]
[White "Drori, Saar"]
[Black "Dzhumagaliev, Yan"]
[WhiteFideId "2812444"]
[BlackFideId "24100110"]
[WhiteElo "2322"]
[BlackElo "2476"]
[Result "0-1"]
[Round "09"]
[TimeControl "180+2"]
[Date "2023.03.28"]
[WhiteClock "0:00:01"]
[BlackClock "0:00:15"]

1. e4 {[%clk 0:03:00]}  h5 {[%clk 0:03:00]} 2. d4 {[%clk 0:03:00]}  h4 {[%clk 0:03:01]} 3. h3 {[%clk 0:03:00]}  c6 {[%clk 0:03:02]} 4. Nc3 {[%clk 0:03:00]}  d5 {[%clk 0:03:02]} 5. e5 {[%clk 0:03:00]}  Bf5 {[%clk 0:03:02]} 6. Nf3 {[%clk 0:02:58]}  e6 {[%clk 0:03:01]} 7. Bd3 {[%clk 0:02:56]}  Ne7 {[%clk 0:03:01]} 8. Bg5 {[%clk 0:02:55]}  Qb6 {[%clk 0:03:00]} 9. Qd2 {[%clk 0:02:36]}  Bxd3 {[%clk 0:02:52]} 10. Bxe7 {[%clk 0:02:33]}  Bxe7 {[%clk 0:02:37]} 11. cxd3 {[%clk 0:02:33]}  Nd7 {[%clk 0:02:30]} 12. O-O {[%clk 0:02:27]}  a5 {[%clk 0:02:24]} 13. Rab1 {[%clk 0:02:25]}  Nf8 {[%clk 0:02:21]} 14. a3 {[%clk 0:02:11]}  Ng6 {[%clk 0:02:16]} 15. Ne2 {[%clk 0:01:56]}  a4 {[%clk 0:02:06]} 16. Rfc1 {[%clk 0:01:52]}  Rh5 {[%clk 0:01:58]} 17. Nf4 {[%clk 0:01:46]}  Rf5 {[%clk 0:01:58]} 18. Ne2 {[%clk 0:01:34]}  Kf8 {[%clk 0:01:51]} 19. Qc2 {[%clk 0:01:29]}  Qd8 {[%clk 0:01:39]} 20. b4 {[%clk 0:01:16]}  Kg8 {[%clk 0:01:22]} 21. Qc3 {[%clk 0:00:58]}  Rc8 {[%clk 0:01:17]} 22. b5 {[%clk 0:00:56]}  c5 {[%clk 0:01:16]} 23. b6 {[%clk 0:00:22]}  c4 {[%clk 0:01:07]} 24. dxc4 {[%clk 0:00:20]}  dxc4 {[%clk 0:01:08]} 25. Rb5 {[%clk 0:00:15]}  Qd7 {[%clk 0:01:06]} 26. Rcb1 {[%clk 0:00:15]}  Bf8 {[%clk 0:00:55]} 27. Nd2 {[%clk 0:00:13]}  Ne7 {[%clk 0:00:28]} 28. Nxc4 {[%clk 0:00:07]}  Nd5 {[%clk 0:00:29]} 29. Qd3 {[%clk 0:00:07]}  Qc6 {[%clk 0:00:27]} 30. Ne3 {[%clk 0:00:07]}  Nxe3 {[%clk 0:00:25]} 31. Qxe3 {[%clk 0:00:06]}  Rd8 {[%clk 0:00:18]} 32. R5b2 {[%clk 0:00:04]}  Qd5 {[%clk 0:00:16]} 33. Rd2 {[%clk 0:00:03]}  Qa5 {[%clk 0:00:15]} 34. Nf4 {[%clk 0:00:01]}  Bxa3 {[%clk 0:00:15]} 0-1


[Site "https://www.chess.com"]

[Event "Titled Tuesday Blitz March 28 Early 2023"]
[White "Dixit, Nikhil"]
[Black "Samunenkov, Ihor"]
[WhiteFideId "5059534"]
[BlackFideId "14187086"]
[WhiteElo "2207"]
[BlackElo "2457"]
[Result "1-0"]
[Round "09"]
[TimeControl "180+2"]
[Date "2023.03.28"]
[WhiteClock "0:00:14"]
[BlackClock "0:00:01"]

1. e4 {[%clk 0:02:49]}  c5 {[%clk 0:02:58]} 2. Nf3 {[%clk 0:02:44]}  Nc6 {[%clk 0:02:59]} 3. Bb5 {[%clk 0:02:44]}  e6 {[%clk 0:02:56]} 4. Bxc6 {[%clk 0:02:44]}  bxc6 {[%clk 0:02:57]} 5. O-O {[%clk 0:02:45]}  Ne7 {[%clk 0:02:57]} 6. d3 {[%clk 0:02:43]}  Ng6 {[%clk 0:02:42]} 7. Nc3 {[%clk 0:02:31]}  e5 {[%clk 0:02:38]} 8. Ne2 {[%clk 0:02:22]}  Be7 {[%clk 0:02:37]} 9. Ng3 {[%clk 0:02:22]}  d6 {[%clk 0:02:33]} 10. Nf5 {[%clk 0:02:18]}  O-O {[%clk 0:02:33]} 11. Be3 {[%clk 0:02:10]}  Bf6 {[%clk 0:02:20]} 12. g3 {[%clk 0:02:04]}  Bxf5 {[%clk 0:02:18]} 13. exf5 {[%clk 0:02:05]}  Ne7 {[%clk 0:02:18]} 14. g4 {[%clk 0:02:03]}  Nd5 {[%clk 0:01:57]} 15. Qd2 {[%clk 0:01:59]}  Nxe3 {[%clk 0:01:53]} 16. Qxe3 {[%clk 0:02:00]}  h6 {[%clk 0:01:53]} 17. Kh1 {[%clk 0:01:57]}  Rb8 {[%clk 0:01:45]} 18. Rab1 {[%clk 0:01:54]}  Bg5 {[%clk 0:01:44]} 19. Nxg5 {[%clk 0:01:37]}  Qxg5 {[%clk 0:01:43]} 20. Qxg5 {[%clk 0:01:37]}  hxg5 {[%clk 0:01:44]} 21. Kg2 {[%clk 0:01:35]}  Rb4 {[%clk 0:01:38]} 22. f3 {[%clk 0:01:29]}  g6 {[%clk 0:01:24]} 23. fxg6 {[%clk 0:01:15]}  fxg6 {[%clk 0:01:23]} 24. b3 {[%clk 0:01:16]}  Kg7 {[%clk 0:01:22]} 25. Rbe1 {[%clk 0:01:16]}  a5 {[%clk 0:01:07]} 26. a4 {[%clk 0:01:13]}  Re8 {[%clk 0:00:42]} 27. Re4 {[%clk 0:01:13]}  d5 {[%clk 0:00:42]} 28. Re2 {[%clk 0:01:12]}  Kf6 {[%clk 0:00:36]} 29. Rh1 {[%clk 0:01:07]}  c4 {[%clk 0:00:25]} 30. dxc4 {[%clk 0:01:05]}  dxc4 {[%clk 0:00:26]} 31. Re3 {[%clk 0:01:04]}  Rd8 {[%clk 0:00:25]} 32. Rc3 {[%clk 0:00:58]}  Rd2+ {[%clk 0:00:20]} 33. Kg3 {[%clk 0:00:58]}  Ke6 {[%clk 0:00:19]} 34. Re1 {[%clk 0:00:54]}  Kd6 {[%clk 0:00:15]} 35. h4 {[%clk 0:00:41]}  c5 {[%clk 0:00:05]} 36. h5 {[%clk 0:00:33]}  gxh5 {[%clk 0:00:04]} 37. gxh5 {[%clk 0:00:31]}  cxb3 {[%clk 0:00:04]} 38. Rxb3 {[%clk 0:00:27]}  Rh4 {[%clk 0:00:02]} 39. Rb6+ {[%clk 0:00:21]}  Kd5 {[%clk 0:00:02]} 40. Re4 {[%clk 0:00:19]}  Rxe4 {[%clk 0:00:01]} 41. fxe4+ {[%clk 0:00:19]}  Kxe4 {[%clk 0:00:02]} 42. h6 {[%clk 0:00:18]}  Rd1 {[%clk 0:00:02]} 43. Kg2 {[%clk 0:00:16]}  Rd2+ {[%clk 0:00:03]} 44. Kg1 {[%clk 0:00:16]}  Rd1+ {[%clk 0:00:02]} 45. Kg2 {[%clk 0:00:16]}  Rd2+ {[%clk 0:00:01]} 46. Kh3 {[%clk 0:00:14]} 1-0


[Site "https://www.chess.com"]

[Event "Titled Tuesday Blitz March 28 Early 2023"]
[White "Cori T., Deysi"]
[Black "Salemgareev, Tagir"]
[WhiteFideId "3801934"]
[BlackFideId "24199052"]
[WhiteElo "2292"]
[BlackElo "2366"]
[Result "1-0"]
[Round "09"]
[TimeControl "180+2"]
[Date "2023.03.28"]
[WhiteClock "0:00:35"]
[BlackClock "0:00:05"]

1. Nf3 {[%clk 0:03:00]}  d5 {[%clk 0:02:58]} 2. e3 {[%clk 0:03:00]}  c5 {[%clk 0:02:57]} 3. Bb5+ {[%clk 0:03:00]}  Bd7 {[%clk 0:02:57]} 4. a4 {[%clk 0:02:54]}  Nf6 {[%clk 0:02:56]} 5. O-O {[%clk 0:02:54]}  g6 {[%clk 0:02:56]} 6. d4 {[%clk 0:02:54]}  cxd4 {[%clk 0:02:55]} 7. exd4 {[%clk 0:02:54]}  Bg7 {[%clk 0:02:55]} 8. Re1 {[%clk 0:02:54]}  O-O {[%clk 0:02:54]} 9. Nc3 {[%clk 0:02:53]}  Bg4 {[%clk 0:02:54]} 10. h3 {[%clk 0:02:52]}  Bxf3 {[%clk 0:02:53]} 11. Qxf3 {[%clk 0:02:52]}  Nc6 {[%clk 0:02:53]} 12. Bxc6 {[%clk 0:02:52]}  bxc6 {[%clk 0:02:53]} 13. a5 {[%clk 0:02:52]}  Nd7 {[%clk 0:02:40]} 14. Bg5 {[%clk 0:02:46]}  Re8 {[%clk 0:02:40]} 15. Qd3 {[%clk 0:02:44]}  Nf8 {[%clk 0:02:20]} 16. Na4 {[%clk 0:02:37]}  Qc7 {[%clk 0:02:14]} 17. Nc5 {[%clk 0:02:33]}  e6 {[%clk 0:02:13]} 18. c3 {[%clk 0:02:31]}  Nd7 {[%clk 0:02:13]} 19. b4 {[%clk 0:02:30]}  Nxc5 {[%clk 0:02:10]} 20. bxc5 {[%clk 0:02:31]}  Rab8 {[%clk 0:02:09]} 21. Qf3 {[%clk 0:02:22]}  Rb3 {[%clk 0:02:05]} 22. Bf4 {[%clk 0:02:21]}  Qb7 {[%clk 0:02:00]} 23. Re3 {[%clk 0:01:47]}  Rb1+ {[%clk 0:01:56]} 24. Rxb1 {[%clk 0:01:47]}  Qxb1+ {[%clk 0:01:56]} 25. Kh2 {[%clk 0:01:47]}  Qa2 {[%clk 0:01:54]} 26. Bc7 {[%clk 0:01:34]}  Rc8 {[%clk 0:01:27]} 27. Qf4 {[%clk 0:01:24]}  Qb2 {[%clk 0:01:25]} 28. Rf3 {[%clk 0:01:17]}  f5 {[%clk 0:00:47]} 29. Qd6 {[%clk 0:01:10]}  Qb7 {[%clk 0:00:47]} 30. Qxe6+ {[%clk 0:01:09]}  Kh8 {[%clk 0:00:47]} 31. Bd6 {[%clk 0:00:59]}  Rd8 {[%clk 0:00:42]} 32. Re3 {[%clk 0:00:57]}  a6 {[%clk 0:00:25]} 33. f4 {[%clk 0:00:43]}  Qc8 {[%clk 0:00:17]} 34. Qf7 {[%clk 0:00:38]}  Rg8 {[%clk 0:00:07]} 35. Re7 {[%clk 0:00:37]}  Qa8 {[%clk 0:00:05]} 36. Be5 {[%clk 0:00:35]} 1-0


[Site "https://www.chess.com"]

[Event "Titled Tuesday Blitz March 28 Early 2023"]
[White "Warmerdam, Max"]
[Black "Bilan, Danila"]
[WhiteFideId "1048104"]
[BlackFideId "24161918"]
[WhiteElo "2518"]
[BlackElo "2182"]
[Result "1-0"]
[Round "09"]
[TimeControl "180+2"]
[Date "2023.03.28"]
[WhiteClock "0:00:55"]
[BlackClock "0:00:05"]

1. Nf3 {[%clk 0:02:54]}  d5 {[%clk 0:02:53]} 2. g3 {[%clk 0:02:55]}  Nf6 {[%clk 0:02:53]} 3. Bg2 {[%clk 0:02:55]}  c5 {[%clk 0:02:48]} 4. O-O {[%clk 0:02:54]}  Nc6 {[%clk 0:02:49]} 5. d4 {[%clk 0:02:53]}  e6 {[%clk 0:02:48]} 6. c4 {[%clk 0:02:51]}  Be7 {[%clk 0:02:45]} 7. cxd5 {[%clk 0:02:47]}  Nxd5 {[%clk 0:02:38]} 8. dxc5 {[%clk 0:02:31]}  Bxc5 {[%clk 0:02:37]} 9. a3 {[%clk 0:02:31]}  Be7 {[%clk 0:02:30]} 10. b4 {[%clk 0:02:27]}  Bf6 {[%clk 0:02:23]} 11. Ra2 {[%clk 0:02:26]}  O-O {[%clk 0:01:54]} 12. Rc2 {[%clk 0:02:22]}  Bd7 {[%clk 0:01:46]} 13. Nbd2 {[%clk 0:02:12]}  Nce7 {[%clk 0:01:39]} 14. Nb3 {[%clk 0:02:02]}  Ba4 {[%clk 0:01:27]} 15. Qd3 {[%clk 0:01:57]}  Nxb4 {[%clk 0:01:07]} 16. Qxd8 {[%clk 0:01:48]}  Rfxd8 {[%clk 0:01:06]} 17. axb4 {[%clk 0:01:36]}  Bxb3 {[%clk 0:01:06]} 18. Rc7 {[%clk 0:01:37]}  Nd5 {[%clk 0:00:46]} 19. Rxb7 {[%clk 0:01:34]}  Rdb8 {[%clk 0:00:45]} 20. Rxb8+ {[%clk 0:01:35]}  Rxb8 {[%clk 0:00:46]} 21. Bd2 {[%clk 0:01:34]}  Bc4 {[%clk 0:00:30]} 22. Re1 {[%clk 0:01:27]}  Nxb4 {[%clk 0:00:28]} 23. h4 {[%clk 0:01:25]}  Nd5 {[%clk 0:00:20]} 24. e4 {[%clk 0:01:24]}  Nb4 {[%clk 0:00:13]} 25. Rc1 {[%clk 0:01:19]}  Be2 {[%clk 0:00:10]} 26. Bxb4 {[%clk 0:01:11]}  h6 {[%clk 0:00:06]} 27. Bd6 {[%clk 0:01:10]}  Rb3 {[%clk 0:00:04]} 28. e5 {[%clk 0:01:08]}  Bxf3 {[%clk 0:00:01]} 29. exf6 {[%clk 0:01:08]}  gxf6 {[%clk 0:00:02]} 30. Bf4 {[%clk 0:00:57]}  Bd5 {[%clk 0:00:01]} 31. Bxh6 {[%clk 0:00:54]}  Kh7 {[%clk 0:00:01]} 32. Be3 {[%clk 0:00:54]}  Bxg2 {[%clk 0:00:01]} 33. Kxg2 {[%clk 0:00:53]}  Ra3 {[%clk 0:00:02]} 34. Rc7 {[%clk 0:00:53]}  a5 {[%clk 0:00:03]} 35. Rxf7+ {[%clk 0:00:53]}  Kg6 {[%clk 0:00:04]} 36. Ra7 {[%clk 0:00:53]}  Ra2 {[%clk 0:00:04]} 37. g4 {[%clk 0:00:54]}  a4 {[%clk 0:00:05]} 38. h5# {[%clk 0:00:55]} 1-0


[Site "https://www.chess.com"]

[Event "Titled Tuesday Blitz March 28 Early 2023"]
[White "Molina, Roberto Junio Brito"]
[Black "Yaniuk, Volodymyr"]
[WhiteFideId "2109450"]
[BlackFideId "14133083"]
[WhiteElo "2376"]
[BlackElo "2141"]
[Result "1/2-1/2"]
[Round "09"]
[TimeControl "180+2"]
[Date "2023.03.28"]
[WhiteClock "0:01:00"]
[BlackClock "0:00:39"]

1. e4 {[%clk 0:03:00]}  e5 {[%clk 0:02:59]} 2. Nf3 {[%clk 0:03:00]}  Nc6 {[%clk 0:03:00]} 3. Bb5 {[%clk 0:03:00]}  Nf6 {[%clk 0:02:59]} 4. O-O {[%clk 0:03:00]}  Nxe4 {[%clk 0:02:59]} 5. d4 {[%clk 0:03:00]}  Nd6 {[%clk 0:02:59]} 6. Bxc6 {[%clk 0:03:00]}  dxc6 {[%clk 0:03:00]} 7. dxe5 {[%clk 0:03:01]}  Nf5 {[%clk 0:03:01]} 8. Qxd8+ {[%clk 0:03:00]}  Kxd8 {[%clk 0:03:02]} 9. Nc3 {[%clk 0:03:00]}  Bd7 {[%clk 0:03:01]} 10. Rd1 {[%clk 0:02:59]}  Kc8 {[%clk 0:02:58]} 11. h3 {[%clk 0:02:57]}  Be7 {[%clk 0:02:58]} 12. Bg5 {[%clk 0:02:52]}  Bb4 {[%clk 0:02:54]} 13. Ne4 {[%clk 0:02:51]}  h6 {[%clk 0:02:51]} 14. Bd2 {[%clk 0:02:48]}  Be7 {[%clk 0:02:51]} 15. c4 {[%clk 0:02:48]}  b6 {[%clk 0:02:50]} 16. Bc3 {[%clk 0:02:48]}  Be6 {[%clk 0:02:48]} 17. b3 {[%clk 0:02:47]}  a5 {[%clk 0:02:48]} 18. a4 {[%clk 0:02:47]}  Kb7 {[%clk 0:02:44]} 19. g4 {[%clk 0:02:45]}  Nh4 {[%clk 0:02:43]} 20. Nd4 {[%clk 0:02:43]}  Bd7 {[%clk 0:02:26]} 21. f4 {[%clk 0:02:35]}  Rad8 {[%clk 0:02:23]} 22. Kf2 {[%clk 0:02:33]}  h5 {[%clk 0:02:17]} 23. Kg3 {[%clk 0:02:29]}  hxg4 {[%clk 0:02:10]} 24. hxg4 {[%clk 0:02:30]}  f5 {[%clk 0:02:07]} 25. exf6 {[%clk 0:02:04]}  gxf6 {[%clk 0:02:07]} 26. f5 {[%clk 0:01:58]}  Rdg8 {[%clk 0:02:01]} 27. Rf1 {[%clk 0:01:48]}  Rh5 {[%clk 0:01:11]} 28. Kf4 {[%clk 0:01:26]}  Ng2+ {[%clk 0:00:40]} 29. Kf3 {[%clk 0:01:25]}  Nh4+ {[%clk 0:00:40]} 30. Kf4 {[%clk 0:01:25]}  Ng2+ {[%clk 0:00:40]} 31. Kf3 {[%clk 0:01:05]}  Nh4+ {[%clk 0:00:39]} 32. Kf4 {[%clk 0:01:00]} 1/2-1/2


[Site "https://www.chess.com"]

[Event "Titled Tuesday Blitz March 28 Early 2023"]
[White "Staudenhocker43"]
[Black "Kosteniuk, Alexandra"]
[BlackFideId "4128125"]
[WhiteElo "2546"]
[BlackElo "2453"]
[Result "1-0"]
[Round "09"]
[TimeControl "180+2"]
[Date "2023.03.28"]
[WhiteClock "0:00:21"]
[BlackClock "0:00:06"]

1. d4 {[%clk 0:03:00]}  f5 {[%clk 0:02:59]} 2. Nc3 {[%clk 0:03:00]}  Nf6 {[%clk 0:02:58]} 3. Bg5 {[%clk 0:03:00]}  d5 {[%clk 0:02:58]} 4. e3 {[%clk 0:03:00]}  e6 {[%clk 0:02:55]} 5. Bd3 {[%clk 0:02:59]}  c5 {[%clk 0:02:55]} 6. Nf3 {[%clk 0:02:58]}  c4 {[%clk 0:02:52]} 7. Be2 {[%clk 0:02:58]}  Nc6 {[%clk 0:02:50]} 8. O-O {[%clk 0:02:56]}  Bd6 {[%clk 0:02:49]} 9. b3 {[%clk 0:02:54]}  Qa5 {[%clk 0:02:31]} 10. Na4 {[%clk 0:02:27]}  b5 {[%clk 0:02:22]} 11. Nc5 {[%clk 0:02:26]}  Bxc5 {[%clk 0:02:13]} 12. dxc5 {[%clk 0:02:20]}  Ne4 {[%clk 0:02:12]} 13. a4 {[%clk 0:02:12]}  O-O {[%clk 0:01:52]} 14. Bf4 {[%clk 0:02:06]}  bxa4 {[%clk 0:01:37]} 15. bxc4 {[%clk 0:02:03]}  Qxc5 {[%clk 0:01:35]} 16. cxd5 {[%clk 0:02:02]}  exd5 {[%clk 0:01:35]} 17. Bd3 {[%clk 0:01:38]}  a3 {[%clk 0:01:23]} 18. Qc1 {[%clk 0:01:33]}  d4 {[%clk 0:01:14]} 19. Qxa3 {[%clk 0:01:30]}  Qxa3 {[%clk 0:01:07]} 20. Rxa3 {[%clk 0:01:31]}  dxe3 {[%clk 0:01:07]} 21. Bxe3 {[%clk 0:01:30]}  Be6 {[%clk 0:01:05]} 22. Bxe4 {[%clk 0:01:27]}  fxe4 {[%clk 0:01:04]} 23. Nd4 {[%clk 0:01:28]}  Nxd4 {[%clk 0:00:59]} 24. Bxd4 {[%clk 0:01:29]}  Bc4 {[%clk 0:00:59]} 25. Rfa1 {[%clk 0:01:28]}  a6 {[%clk 0:01:00]} 26. Re3 {[%clk 0:01:14]}  Rfe8 {[%clk 0:00:33]} 27. Rc3 {[%clk 0:01:08]}  Rac8 {[%clk 0:00:30]} 28. h4 {[%clk 0:00:45]}  g6 {[%clk 0:00:28]} 29. Kh2 {[%clk 0:00:43]}  Bb5 {[%clk 0:00:28]} 30. Raa3 {[%clk 0:00:42]}  Rcd8 {[%clk 0:00:24]} 31. Bf6 {[%clk 0:00:34]}  Rd7 {[%clk 0:00:24]} 32. Rc5 {[%clk 0:00:30]}  Rf7 {[%clk 0:00:24]} 33. Bd4 {[%clk 0:00:29]}  Rd7 {[%clk 0:00:23]} 34. Be3 {[%clk 0:00:28]}  Kf7 {[%clk 0:00:20]} 35. c4 {[%clk 0:00:28]}  Rd3 {[%clk 0:00:14]} 36. Rxd3 {[%clk 0:00:25]}  exd3 {[%clk 0:00:15]} 37. cxb5 {[%clk 0:00:25]}  axb5 {[%clk 0:00:16]} 38. Rxb5 {[%clk 0:00:25]}  Rd8 {[%clk 0:00:16]} 39. Rb2 {[%clk 0:00:24]}  Ke6 {[%clk 0:00:16]} 40. Rd2 {[%clk 0:00:23]}  Ke5 {[%clk 0:00:16]} 41. f3 {[%clk 0:00:23]}  Rd7 {[%clk 0:00:15]} 42. Kg3 {[%clk 0:00:23]}  Kf5 {[%clk 0:00:15]} 43. Kf2 {[%clk 0:00:23]}  Rd8 {[%clk 0:00:14]} 44. Bg5 {[%clk 0:00:22]}  Rd7 {[%clk 0:00:09]} 45. g4+ {[%clk 0:00:22]}  Ke6 {[%clk 0:00:08]} 46. Ke3 {[%clk 0:00:23]}  Rb7 {[%clk 0:00:08]} 47. Rxd3 {[%clk 0:00:22]}  Rb1 {[%clk 0:00:07]} 48. Ra3 {[%clk 0:00:22]}  Re1+ {[%clk 0:00:06]} 49. Kf2 {[%clk 0:00:21]} 1-0


[Site "https://www.chess.com"]